[Event "*** SCC Grand Prix: Titled Tuesday Blitz"]
[Site "Chess.com"]
[Date "2020.06.02"]
[Round "1"]
[White "aisha_zakirova"]
[Black "kleopl"]
[Result "0-1"]
[WhiteElo "1937"]
[BlackElo "2467"]
[TimeControl "180+1"]
[EndTime "10:07:32 PDT"]
[Termination "kleopl won by resignation"]

1. d4 {[%clk 0:03:00.9]} 1... f5 {[%clk 0:02:57.4]} 2. e4 {[%clk 0:02:58.6]}
2... fxe4 {[%clk 0:02:56.5]} 3. Nc3 {[%clk 0:02:44]} 3... Nf6 {[%clk 0:02:56.1]}
4. Bg5 {[%clk 0:02:36.6]} 4... Nc6 {[%clk 0:02:55.4]} 5. Nge2 {[%clk 0:02:29.3]}
5... d5 {[%clk 0:02:50.5]} 6. Nf4 {[%clk 0:02:28.2]} 6... e6 {[%clk 0:02:45.6]}
7. Bb5 {[%clk 0:02:26.3]} 7... Bb4 {[%clk 0:02:41.8]} 8. O-O {[%clk 0:02:25.3]}
8... O-O {[%clk 0:02:40]} 9. Nh5 {[%clk 0:02:04.5]} 9... Be7 {[%clk 0:02:28.1]}
10. Nf4 {[%clk 0:01:51.5]} 10... a6 {[%clk 0:02:04]} 11. Bxc6 {[%clk 0:01:47.4]}
11... bxc6 {[%clk 0:02:04.9]} 12. f3 {[%clk 0:01:46.1]} 12... exf3 {[%clk
0:01:58.3]} 13. Qxf3 {[%clk 0:01:37.4]} 13... Rf7 {[%clk 0:01:42.5]} 14. Rae1
{[%clk 0:01:32.7]} 14... Qd6 {[%clk 0:01:40.5]} 15. Qe2 {[%clk 0:01:19.1]} 15...
c5 {[%clk 0:01:27.3]} 16. Nxe6 {[%clk 0:01:05.1]} 16... Bxe6 {[%clk 0:01:18.5]}
17. Qxe6 {[%clk 0:01:03.8]} 17... cxd4 {[%clk 0:01:15.4]} 18. Bxf6 {[%clk
0:00:43.6]} 18... Qxe6 {[%clk 0:00:59.5]} 19. Rxe6 {[%clk 0:00:42.3]} 19... Bxf6
{[%clk 0:00:31.9]} 20. Nxd5 {[%clk 0:00:41.1]} 20... Bg5 {[%clk 0:00:28.8]} 21.
Rxf7 {[%clk 0:00:39.2]} 21... Kxf7 {[%clk 0:00:29.7]} 22. Nxc7 {[%clk
0:00:37.7]} 22... Rc8 {[%clk 0:00:28]} 23. Rc6 {[%clk 0:00:31.7]} 23... Bf4
{[%clk 0:00:27.3]} 24. Rxa6 {[%clk 0:00:27.3]} 24... Rxc7 {[%clk 0:00:26.9]} 25.
Ra5 {[%clk 0:00:22.6]} 25... Be3+ {[%clk 0:00:24]} 26. Kf1 {[%clk 0:00:21.6]}
26... Rxc2 {[%clk 0:00:24.7]} 27. b4 {[%clk 0:00:20.9]} 27... Rf2+ {[%clk
0:00:24.6]} 28. Ke1 {[%clk 0:00:20.7]} 28... Rxg2 {[%clk 0:00:24.8]} 29. Rf5+
{[%clk 0:00:19.8]} 29... Ke6 {[%clk 0:00:24.4]} 30. Rf3 {[%clk 0:00:19.6]} 30...
Rxa2 {[%clk 0:00:23.4]} 31. b5 {[%clk 0:00:19.5]} 31... Rb2 {[%clk 0:00:22.7]}
32. Rh3 {[%clk 0:00:19.1]} 32... h6 {[%clk 0:00:22.3]} 33. Rh5 {[%clk
0:00:18.9]} 33... Bg5 {[%clk 0:00:20.5]} 34. h4 {[%clk 0:00:18.1]} 34... Bf6
{[%clk 0:00:18.2]} 35. Kd1 {[%clk 0:00:17]} 35... Be5 {[%clk 0:00:17.2]} 36. Kc1
{[%clk 0:00:14.7]} 36... Rxb5 {[%clk 0:00:16.9]} 37. Kd1 {[%clk 0:00:13.3]}
37... Rb2 {[%clk 0:00:16.3]} 38. Ke1 {[%clk 0:00:12.8]} 38... d3 {[%clk
0:00:16.5]} 39. Kd1 {[%clk 0:00:12.8]} 39... Bf4 {[%clk 0:00:16.2]} 40. Ke1
{[%clk 0:00:12.2]} 0-1

[Event "*** SCC Grand Prix: Titled Tuesday Blitz"]
[Site "Chess.com"]
[Date "2020.06.02"]
[Round "1"]
[White "Heineccius"]
[Black "joksijoksi"]
[Result "1-0"]
[WhiteElo "2668"]
[BlackElo "2332"]
[TimeControl "180+1"]
[EndTime "10:07:33 PDT"]
[Termination "Heineccius won by checkmate"]

1. d4 {[%clk 0:03:00.9]} 1... e6 {[%clk 0:03:00]} 2. c4 {[%clk 0:03:00.4]} 2...
d5 {[%clk 0:03:00.4]} 3. Nc3 {[%clk 0:03:00.1]} 3... c6 {[%clk 0:02:58]} 4. e3
{[%clk 0:02:57.3]} 4... Bd6 {[%clk 0:02:52.5]} 5. Nf3 {[%clk 0:02:51.2]} 5... f5
{[%clk 0:02:52.3]} 6. Bd3 {[%clk 0:02:45.3]} 6... Nf6 {[%clk 0:02:50.7]} 7. O-O
{[%clk 0:02:39.5]} 7... O-O {[%clk 0:02:50.4]} 8. Qc2 {[%clk 0:02:35.6]} 8...
Ne4 {[%clk 0:02:50.4]} 9. Rb1 {[%clk 0:02:31.5]} 9... Nd7 {[%clk 0:02:48.5]} 10.
b4 {[%clk 0:02:29.4]} 10... g5 {[%clk 0:02:18.9]} 11. Ne2 {[%clk 0:02:00.1]}
11... g4 {[%clk 0:02:13.8]} 12. Nd2 {[%clk 0:01:40.9]} 12... Rf6 {[%clk
0:01:45.8]} 13. Nf4 {[%clk 0:01:31.8]} 13... Rh6 {[%clk 0:01:40.4]} 14. g3
{[%clk 0:01:14.6]} 14... Qg5 {[%clk 0:01:13.7]} 15. f3 {[%clk 0:00:46.9]} 15...
Bxf4 {[%clk 0:00:59.6]} 16. exf4 {[%clk 0:00:43.2]} 16... Qh5 {[%clk 0:00:59.9]}
17. Nxe4 {[%clk 0:00:41.6]} 17... dxe4 {[%clk 0:00:39.7]} 18. fxe4 {[%clk
0:00:42.4]} 18... Nf6 {[%clk 0:00:27.5]} 19. e5 {[%clk 0:00:32.8]} 19... Ne4
{[%clk 0:00:21.2]} 20. Bxe4 {[%clk 0:00:32.2]} 20... fxe4 {[%clk 0:00:22.1]} 21.
f5 {[%clk 0:00:17.1]} 21... exf5 {[%clk 0:00:14.8]} 22. Bxh6 {[%clk 0:00:17.4]}
22... Qxh6 {[%clk 0:00:15.1]} 23. Qc1 {[%clk 0:00:18.3]} 23... Qg6 {[%clk
0:00:13.5]} 24. Qf4 {[%clk 0:00:17.1]} 24... Be6 {[%clk 0:00:13.5]} 25. Rbc1
{[%clk 0:00:17.2]} 25... Rd8 {[%clk 0:00:13.3]} 26. Rfd1 {[%clk 0:00:17.6]}
26... b6 {[%clk 0:00:11.4]} 27. Rd2 {[%clk 0:00:17.8]} 27... a6 {[%clk 0:00:11]}
28. a4 {[%clk 0:00:18.1]} 28... h5 {[%clk 0:00:08.5]} 29. h4 {[%clk 0:00:18.1]}
29... Kg7 {[%clk 0:00:07.3]} 30. Kh2 {[%clk 0:00:18.5]} 30... Kf7 {[%clk
0:00:07.3]} 31. b5 {[%clk 0:00:18.3]} 31... axb5 {[%clk 0:00:03.3]} 32. cxb5
{[%clk 0:00:18.5]} 32... cxb5 {[%clk 0:00:03]} 33. Rc7+ {[%clk 0:00:18.2]} 33...
Kg8 {[%clk 0:00:02]} 34. axb5 {[%clk 0:00:17.6]} 34... Ra8 {[%clk 0:00:02.6]}
35. Rdc2 {[%clk 0:00:16.7]} 35... Ra2 {[%clk 0:00:02.6]} 36. Rxa2 {[%clk
0:00:15.6]} 36... Bxa2 {[%clk 0:00:03.5]} 37. Rc6 {[%clk 0:00:15.7]} 37... Qg7
{[%clk 0:00:03.2]} 38. d5 {[%clk 0:00:15]} 38... Bxd5 {[%clk 0:00:03.5]} 39.
Rxb6 {[%clk 0:00:15.1]} 39... Qf7 {[%clk 0:00:03.6]} 40. Rd6 {[%clk 0:00:14.9]}
40... Kf8 {[%clk 0:00:03.8]} 41. Qg5 {[%clk 0:00:15.1]} 41... Ke8 {[%clk
0:00:03.9]} 42. Rd8# {[%clk 0:00:15.1]} 1-0

[Event "*** SCC Grand Prix: Titled Tuesday Blitz"]
[Site "Chess.com"]
[Date "2020.06.02"]
[Round "1"]
[White "lukas_111111"]
[Black "H3nriqueTV"]
[Result "1-0"]
[WhiteElo "2535"]
[BlackElo "2172"]
[TimeControl "180+1"]
[EndTime "10:07:34 PDT"]
[Termination "lukas_111111 won by resignation"]

1. e4 {[%clk 0:02:58.1]} 1... c5 {[%clk 0:02:50.3]} 2. Nf3 {[%clk 0:02:57.3]}
2... b6 {[%clk 0:02:49.5]} 3. d4 {[%clk 0:02:56.8]} 3... cxd4 {[%clk 0:02:50.4]}
4. Nxd4 {[%clk 0:02:57.3]} 4... Bb7 {[%clk 0:02:48.5]} 5. Nc3 {[%clk 0:02:57.8]}
5... a6 {[%clk 0:02:49.1]} 6. Bg5 {[%clk 0:02:57.3]} 6... Nc6 {[%clk 0:02:44.6]}
7. Nxc6 {[%clk 0:02:54]} 7... Bxc6 {[%clk 0:02:42.7]} 8. Qd2 {[%clk 0:02:45.4]}
8... Qc7 {[%clk 0:02:41.6]} 9. O-O-O {[%clk 0:02:42.4]} 9... e6 {[%clk
0:02:41.3]} 10. Bf4 {[%clk 0:02:38.3]} 10... Qb7 {[%clk 0:02:36.8]} 11. Bd6
{[%clk 0:02:30.7]} 11... Bxd6 {[%clk 0:02:04.3]} 12. Qxd6 {[%clk 0:02:29.8]}
12... Nf6 {[%clk 0:02:03.2]} 13. f3 {[%clk 0:02:28.5]} 13... b5 {[%clk
0:01:45.6]} 14. e5 {[%clk 0:02:26.9]} 14... Nd5 {[%clk 0:01:44.7]} 15. Ne4
{[%clk 0:02:26.9]} 15... O-O-O {[%clk 0:01:37.9]} 16. Qc5 {[%clk 0:02:19.9]}
16... Kb8 {[%clk 0:01:35.6]} 17. Nd6 {[%clk 0:02:18.8]} 17... Qc7 {[%clk
0:01:30.6]} 18. Nxf7 {[%clk 0:02:17.2]} 18... Rhf8 {[%clk 0:01:28.4]} 19. Nxd8
{[%clk 0:02:14.1]} 19... Rxd8 {[%clk 0:01:28.9]} 20. Qd6 {[%clk 0:02:12.4]}
20... Qxd6 {[%clk 0:01:17.5]} 21. exd6 {[%clk 0:02:13.3]} 21... Rc8 {[%clk
0:01:18.1]} 22. Bd3 {[%clk 0:02:11.6]} 22... g6 {[%clk 0:01:17.6]} 23. h4 {[%clk
0:02:10.5]} 23... Kb7 {[%clk 0:01:18]} 24. h5 {[%clk 0:02:10.4]} 24... Nf4
{[%clk 0:01:16.8]} 25. hxg6 {[%clk 0:02:09.4]} 25... hxg6 {[%clk 0:01:16.7]} 26.
Be4 {[%clk 0:01:53.4]} 26... Nxg2 {[%clk 0:01:05.6]} 27. Bxc6+ {[%clk
0:01:49.3]} 27... Rxc6 {[%clk 0:01:06.5]} 28. Rh7 {[%clk 0:01:44.1]} 28... Kc8
{[%clk 0:01:04.1]} 29. Rg1 {[%clk 0:01:39.2]} 29... Nf4 {[%clk 0:01:03.8]} 30.
Rd1 {[%clk 0:01:30]} 30... Nd5 {[%clk 0:01:02.3]} 31. Rg7 {[%clk 0:01:27.6]}
31... Rxd6 {[%clk 0:00:54.3]} 32. Rxg6 {[%clk 0:01:27.5]} 32... Rc6 {[%clk
0:00:54.6]} 33. Rg8+ {[%clk 0:01:26.4]} 33... Kb7 {[%clk 0:00:54.6]} 34. f4
{[%clk 0:01:26]} 34... Kc7 {[%clk 0:00:49.4]} 35. f5 {[%clk 0:01:25.5]} 35...
Ne3 {[%clk 0:00:49.7]} 36. fxe6 {[%clk 0:01:22.6]} 36... dxe6 {[%clk 0:00:46.1]}
37. Rg7+ {[%clk 0:01:21.5]} 37... Kb6 {[%clk 0:00:46]} 38. Rd2 {[%clk
0:01:21.4]} 38... e5 {[%clk 0:00:45.4]} 39. Rgd7 {[%clk 0:01:19.4]} 39... Nc4
{[%clk 0:00:44.1]} 40. Rd1 {[%clk 0:01:17.5]} 40... Kc5 {[%clk 0:00:26.9]} 41.
R7d5+ {[%clk 0:01:14.9]} 41... Kb4 {[%clk 0:00:26.4]} 42. R1d3 {[%clk
0:01:11.6]} 42... Ka5 {[%clk 0:00:25.4]} 43. b3 {[%clk 0:01:07.5]} 43... e4
{[%clk 0:00:25.6]} 44. Rc3 {[%clk 0:01:02.6]} 44... Kb4 {[%clk 0:00:17.5]} 45.
Rh3 {[%clk 0:00:59]} 45... Na3 {[%clk 0:00:16.5]} 46. Rd4+ {[%clk 0:00:53.3]}
46... Ka5 {[%clk 0:00:16.9]} 47. c3 {[%clk 0:00:50.3]} 47... b4 {[%clk
0:00:14.4]} 48. Rxb4 {[%clk 0:00:49.3]} 48... Nb5 {[%clk 0:00:10.8]} 49. Ra4+
{[%clk 0:00:48]} 49... Kb6 {[%clk 0:00:11.5]} 50. Rc4 {[%clk 0:00:46.3]} 50...
Rd6 {[%clk 0:00:10.8]} 51. Rxe4 {[%clk 0:00:45.1]} 51... Rf6 {[%clk 0:00:10.8]}
52. Rhe3 {[%clk 0:00:43.1]} 52... Rf1+ {[%clk 0:00:10.9]} 53. Re1 {[%clk
0:00:42.9]} 53... Rf2 {[%clk 0:00:11.5]} 54. Re6+ {[%clk 0:00:41.9]} 54... Kb7
{[%clk 0:00:10.9]} 55. Re7+ {[%clk 0:00:41.2]} 55... Kc6 {[%clk 0:00:10.5]} 56.
R1e6+ {[%clk 0:00:41.2]} 56... Kd5 {[%clk 0:00:11.1]} 57. c4+ {[%clk 0:00:41.2]}
57... Kd4 {[%clk 0:00:12]} 58. cxb5 {[%clk 0:00:41.3]} 58... Rxa2 {[%clk
0:00:11.4]} 1-0

[Event "*** SCC Grand Prix: Titled Tuesday Blitz"]
[Site "Chess.com"]
[Date "2020.06.02"]
[Round "1"]
[White "Jumbo"]
[Black "Irishchessman16"]
[Result "1-0"]
[WhiteElo "2830"]
[BlackElo "2414"]
[TimeControl "180+1"]
[EndTime "10:07:35 PDT"]
[Termination "Jumbo won by resignation"]

1. Nf3 {[%clk 0:03:00.9]} 1... c5 {[%clk 0:02:58.6]} 2. g3 {[%clk 0:03:01]} 2...
Nc6 {[%clk 0:02:56.7]} 3. Bg2 {[%clk 0:03:01.2]} 3... e5 {[%clk 0:02:56.8]} 4.
O-O {[%clk 0:03:01.3]} 4... Be7 {[%clk 0:02:54.1]} 5. c4 {[%clk 0:02:58.2]} 5...
Nf6 {[%clk 0:02:52.7]} 6. Nc3 {[%clk 0:02:56.1]} 6... O-O {[%clk 0:02:50.9]} 7.
e3 {[%clk 0:02:56.2]} 7... d6 {[%clk 0:02:50.6]} 8. h3 {[%clk 0:02:53.8]} 8...
Be6 {[%clk 0:02:48.5]} 9. b3 {[%clk 0:02:53.6]} 9... Nd7 {[%clk 0:02:46.2]} 10.
d4 {[%clk 0:02:47.4]} 10... exd4 {[%clk 0:02:44.3]} 11. exd4 {[%clk 0:02:48.3]}
11... Bf6 {[%clk 0:02:26.5]} 12. Be3 {[%clk 0:02:45]} 12... Qa5 {[%clk
0:02:04.4]} 13. Ne4 {[%clk 0:02:18.3]} 13... cxd4 {[%clk 0:02:04.1]} 14. Nxf6+
{[%clk 0:02:09.9]} 14... Nxf6 {[%clk 0:02:03.3]} 15. Nxd4 {[%clk 0:02:10.3]}
15... Bd7 {[%clk 0:02:00.3]} 16. Nxc6 {[%clk 0:01:43.5]} 16... Bxc6 {[%clk
0:01:58.3]} 17. Bxc6 {[%clk 0:01:43.4]} 17... bxc6 {[%clk 0:01:58.6]} 18. Qxd6
{[%clk 0:01:43.9]} 18... Qf5 {[%clk 0:01:55.7]} 19. Kh2 {[%clk 0:01:30.4]} 19...
Qh5 {[%clk 0:01:46.8]} 20. Kg2 {[%clk 0:01:28.6]} 20... Rfe8 {[%clk 0:01:36.9]}
21. Qxc6 {[%clk 0:01:21.1]} 21... Rad8 {[%clk 0:01:29.2]} 22. Qf3 {[%clk
0:01:20.1]} 22... Qg6 {[%clk 0:01:28.7]} 23. Rad1 {[%clk 0:01:15.7]} 23... h5
{[%clk 0:01:28.4]} 24. Bxa7 {[%clk 0:01:12.4]} 24... Qc2 {[%clk 0:01:27.2]} 25.
Bd4 {[%clk 0:00:56.5]} 25... Re2 {[%clk 0:01:11.5]} 26. Rc1 {[%clk 0:00:54.5]}
26... Qxa2 {[%clk 0:00:59]} 27. Bxf6 {[%clk 0:00:44.1]} 27... gxf6 {[%clk
0:00:58.4]} 28. Qxf6 {[%clk 0:00:44.2]} 28... Rdd2 {[%clk 0:00:55.3]} 29. Rc3
{[%clk 0:00:35.4]} 29... h4 {[%clk 0:00:21]} 30. Rf3 {[%clk 0:00:31.8]} 30...
Qa7 {[%clk 0:00:18.4]} 31. Qg5+ {[%clk 0:00:29.6]} 31... Kf8 {[%clk 0:00:18.5]}
32. Qh6+ {[%clk 0:00:29.4]} 32... Kg8 {[%clk 0:00:18.6]} 33. Qxh4 {[%clk
0:00:27.3]} 33... Qb7 {[%clk 0:00:17.6]} 34. Qg4+ {[%clk 0:00:26.2]} 34... Kf8
{[%clk 0:00:17.5]} 35. Kg1 {[%clk 0:00:26.2]} 35... Qb6 {[%clk 0:00:14.1]} 36.
h4 {[%clk 0:00:25]} 36... Qd6 {[%clk 0:00:07.7]} 37. h5 {[%clk 0:00:22.5]} 37...
Rd1 {[%clk 0:00:06.7]} 38. Rxf7+ {[%clk 0:00:14.8]} 38... Kxf7 {[%clk
0:00:05.2]} 39. Qxe2 {[%clk 0:00:15.3]} 39... Rxf1+ {[%clk 0:00:02.9]} 40. Kxf1
{[%clk 0:00:16.2]} 40... Qb4 {[%clk 0:00:02.6]} 41. Qf3+ {[%clk 0:00:16.1]}
41... Kg7 {[%clk 0:00:02.6]} 42. Kg2 {[%clk 0:00:17]} 1-0

[Event "*** SCC Grand Prix: Titled Tuesday Blitz"]
[Site "Chess.com"]
[Date "2020.06.02"]
[Round "1"]
[White "Lion-Al-Messi"]
[Black "AlexTriapishko"]
[Result "0-1"]
[WhiteElo "2351"]
[BlackElo "2704"]
[TimeControl "180+1"]
[EndTime "10:07:35 PDT"]
[Termination "AlexTriapishko won on time"]

1. e4 {[%clk 0:02:58.2]} 1... e5 {[%clk 0:02:54.8]} 2. Nf3 {[%clk 0:02:57]} 2...
Nc6 {[%clk 0:02:55.4]} 3. Bb5 {[%clk 0:02:56.8]} 3... a6 {[%clk 0:02:55.9]} 4.
Ba4 {[%clk 0:02:56.7]} 4... Nf6 {[%clk 0:02:56.5]} 5. O-O {[%clk 0:02:55.5]}
5... d6 {[%clk 0:02:57]} 6. c3 {[%clk 0:02:53.7]} 6... Bd7 {[%clk 0:02:57]} 7.
Bc2 {[%clk 0:02:52.9]} 7... g6 {[%clk 0:02:57.1]} 8. d4 {[%clk 0:02:53.1]} 8...
Bg7 {[%clk 0:02:57.7]} 9. Be3 {[%clk 0:02:53.8]} 9... O-O {[%clk 0:02:57.8]} 10.
h3 {[%clk 0:02:54]} 10... exd4 {[%clk 0:02:47.4]} 11. cxd4 {[%clk 0:02:53.4]}
11... Nb4 {[%clk 0:02:47.9]} 12. Nc3 {[%clk 0:02:52.7]} 12... Nxc2 {[%clk
0:02:47.7]} 13. Qxc2 {[%clk 0:02:53.6]} 13... b5 {[%clk 0:02:36.7]} 14. e5
{[%clk 0:02:49.4]} 14... Bf5 {[%clk 0:02:34.2]} 15. Qb3 {[%clk 0:02:47.7]} 15...
Ne4 {[%clk 0:02:33.2]} 16. Rad1 {[%clk 0:02:32.6]} 16... Nxc3 {[%clk 0:02:26.8]}
17. bxc3 {[%clk 0:02:33.5]} 17... Be4 {[%clk 0:02:23.8]} 18. Nd2 {[%clk
0:02:27.6]} 18... Bb7 {[%clk 0:02:15.6]} 19. f4 {[%clk 0:02:26.6]} 19... Qd7
{[%clk 0:02:16]} 20. Nf3 {[%clk 0:02:24.3]} 20... Rad8 {[%clk 0:02:05.6]} 21.
Ng5 {[%clk 0:02:10.2]} 21... dxe5 {[%clk 0:01:26.3]} 22. fxe5 {[%clk 0:02:03.6]}
22... Qd5 {[%clk 0:01:20.3]} 23. Qc2 {[%clk 0:01:48.5]} 23... f6 {[%clk
0:01:16.1]} 24. Nf3 {[%clk 0:01:22]} 24... fxe5 {[%clk 0:01:04.7]} 25. dxe5
{[%clk 0:01:22.9]} 25... Qe4 {[%clk 0:01:03.2]} 26. Qb3+ {[%clk 0:01:17.6]}
26... Bd5 {[%clk 0:01:01.3]} 27. Rxd5 {[%clk 0:00:54]} 27... Qxd5 {[%clk
0:01:00.6]} 28. Bd4 {[%clk 0:00:24]} 28... Qxb3 {[%clk 0:00:37.6]} 29. axb3
{[%clk 0:00:24.9]} 29... a5 {[%clk 0:00:38.5]} 30. Re1 {[%clk 0:00:19.1]} 30...
a4 {[%clk 0:00:36.9]} 31. bxa4 {[%clk 0:00:18.7]} 31... bxa4 {[%clk 0:00:37.7]}
32. e6 {[%clk 0:00:18.7]} 32... Bxd4+ {[%clk 0:00:38.3]} 33. Nxd4 {[%clk
0:00:16.4]} 33... Rfe8 {[%clk 0:00:38.9]} 34. Ra1 {[%clk 0:00:05.9]} 34... c5
{[%clk 0:00:36.3]} 35. Nb5 {[%clk 0:00:05.7]} 35... Rxe6 {[%clk 0:00:34.6]} 36.
Rxa4 {[%clk 0:00:05.7]} 36... Re2 {[%clk 0:00:33.5]} 37. Rg4 {[%clk 0:00:04.1]}
37... Kg7 {[%clk 0:00:32.8]} 38. Nc7 {[%clk 0:00:03.5]} 38... h5 {[%clk
0:00:32.2]} 39. Rg3 {[%clk 0:00:03]} 39... Rd1+ {[%clk 0:00:30.2]} 40. Kh2
{[%clk 0:00:02.8]} 40... Ree1 {[%clk 0:00:31.1]} 41. Rf3 {[%clk 0:00:02]} 41...
h4 {[%clk 0:00:31.5]} 42. g3 {[%clk 0:00:01.4]} 42... Re2+ {[%clk 0:00:31.8]}
0-1

[Event "*** SCC Grand Prix: Titled Tuesday Blitz"]
[Site "Chess.com"]
[Date "2020.06.02"]
[Round "1"]
[White "Moon_stone123"]
[Black "andriipalchuk"]
[Result "0-1"]
[WhiteElo "2482"]
[BlackElo "2103"]
[TimeControl "180+1"]
[EndTime "10:07:35 PDT"]
[Termination "andriipalchuk won by checkmate"]

1. Nf3 {[%clk 0:02:59.2]} 1... Nf6 {[%clk 0:02:56.4]} 2. g3 {[%clk 0:02:59]}
2... d5 {[%clk 0:02:56.2]} 3. Bg2 {[%clk 0:02:57.6]} 3... c6 {[%clk 0:02:57.1]}
4. O-O {[%clk 0:02:56.7]} 4... Bg4 {[%clk 0:02:57.7]} 5. d3 {[%clk 0:02:56]}
5... Nbd7 {[%clk 0:02:57.3]} 6. Nbd2 {[%clk 0:02:55.7]} 6... e5 {[%clk
0:02:57.8]} 7. c4 {[%clk 0:02:53.1]} 7... Bd6 {[%clk 0:02:56.5]} 8. b3 {[%clk
0:02:52.5]} 8... O-O {[%clk 0:02:56.1]} 9. Bb2 {[%clk 0:02:51.5]} 9... Re8
{[%clk 0:02:55.9]} 10. Qc2 {[%clk 0:02:46.8]} 10... e4 {[%clk 0:02:55]} 11. Nd4
{[%clk 0:02:27.5]} 11... Nc5 {[%clk 0:02:20.5]} 12. b4 {[%clk 0:02:09.5]} 12...
exd3 {[%clk 0:02:18.4]} 13. exd3 {[%clk 0:02:10.4]} 13... Ne6 {[%clk 0:02:18.4]}
14. N4b3 {[%clk 0:02:05.6]} 14... Bxb4 {[%clk 0:01:57.6]} 15. a3 {[%clk
0:02:01.1]} 15... Bd6 {[%clk 0:01:53.4]} 16. cxd5 {[%clk 0:01:40.7]} 16... cxd5
{[%clk 0:01:48.8]} 17. Bxf6 {[%clk 0:01:31.8]} 17... Qxf6 {[%clk 0:01:36.2]} 18.
Bxd5 {[%clk 0:01:31.6]} 18... Rac8 {[%clk 0:01:34.2]} 19. Nc4 {[%clk 0:01:29.5]}
19... b5 {[%clk 0:01:31.9]} 20. Nxd6 {[%clk 0:01:03]} 20... Rxc2 {[%clk
0:01:30.6]} 21. Nxe8 {[%clk 0:01:03.5]} 21... Qe7 {[%clk 0:01:17.6]} 22. Bxe6
{[%clk 0:00:35.1]} 22... Bxe6 {[%clk 0:01:10.8]} 23. Nd4 {[%clk 0:00:35.5]}
23... Rc8 {[%clk 0:01:10.4]} 24. Rfe1 {[%clk 0:00:33.5]} 24... Qxe8 {[%clk
0:01:09.4]} 25. Rac1 {[%clk 0:00:30.8]} 25... h6 {[%clk 0:01:05.9]} 26. Rxc8
{[%clk 0:00:25.3]} 26... Qxc8 {[%clk 0:01:05.2]} 27. Nxb5 {[%clk 0:00:25.4]}
27... Qa6 {[%clk 0:01:03.5]} 28. Nd4 {[%clk 0:00:20.6]} 28... Qxd3 {[%clk
0:01:03]} 29. Nxe6 {[%clk 0:00:20.7]} 29... fxe6 {[%clk 0:01:03.9]} 30. h4
{[%clk 0:00:20.1]} 30... Qxa3 {[%clk 0:01:03.2]} 31. Rxe6 {[%clk 0:00:19.5]}
31... a5 {[%clk 0:00:59.9]} 32. h5 {[%clk 0:00:18.6]} 32... a4 {[%clk
0:00:59.5]} 33. Ra6 {[%clk 0:00:18.4]} 33... Qc1+ {[%clk 0:00:57.4]} 34. Kg2
{[%clk 0:00:16.9]} 34... Qc4 {[%clk 0:00:50.6]} 35. Ra5 {[%clk 0:00:15.9]} 35...
Qb4 {[%clk 0:00:50.1]} 36. Ra8+ {[%clk 0:00:15.5]} 36... Kh7 {[%clk 0:00:49.8]}
37. Kh3 {[%clk 0:00:15.8]} 37... a3 {[%clk 0:00:49.5]} 38. g4 {[%clk 0:00:15.3]}
38... Qb3+ {[%clk 0:00:47.5]} 39. Kh4 {[%clk 0:00:15.4]} 39... a2 {[%clk
0:00:46.6]} 40. g5 {[%clk 0:00:15]} 40... Qc4+ {[%clk 0:00:45.4]} 41. Kg3 {[%clk
0:00:14.9]} 41... hxg5 {[%clk 0:00:44.9]} 42. f3 {[%clk 0:00:15.3]} 42... Qf4+
{[%clk 0:00:42.6]} 43. Kg2 {[%clk 0:00:15.3]} 43... Qd2+ {[%clk 0:00:41.9]} 44.
Kg3 {[%clk 0:00:15.5]} 44... Qe1+ {[%clk 0:00:42]} 45. Kg4 {[%clk 0:00:15.1]}
45... a1=Q {[%clk 0:00:42.9]} 46. Rxa1 {[%clk 0:00:13.7]} 46... Qxa1 {[%clk
0:00:40.4]} 47. h6 {[%clk 0:00:14.6]} 47... gxh6 {[%clk 0:00:39.3]} 48. f4
{[%clk 0:00:14.8]} 48... Qd4 {[%clk 0:00:38.9]} 49. Kh5 {[%clk 0:00:14.7]} 49...
gxf4 {[%clk 0:00:37.4]} 50. Kg4 {[%clk 0:00:14.8]} 50... Qe3 {[%clk 0:00:36.8]}
51. Kh5 {[%clk 0:00:13.5]} 51... f3 {[%clk 0:00:36.7]} 52. Kg4 {[%clk
0:00:13.8]} 52... f2 {[%clk 0:00:37.6]} 53. Kh4 {[%clk 0:00:11.8]} 53... f1=Q
{[%clk 0:00:36.6]} 54. Kh5 {[%clk 0:00:12.3]} 54... Qfh3# {[%clk 0:00:35.9]} 0-1